fUSD/lending_fUSD_20260703
["ID","MTS","AMOUNT","RATE_DAILY","PERIOD"]
[426936528,1783027845000,-343.373771,0.000367,7]
[426936537,1783027845000,-343.373771,0.000367,7]
[426936525,1783027845000,-343.373771,0.000367,7]
[426936510,1783027845000,-238.19104772,0.00036684,120]
[426936527,1783027845000,-346.373771,0.000367,7]
[426936507,1783027845000,-1390.0,0.00036677,5]
[426936508,1783027845000,-1423.0,0.00036677,5]
[426936511,1783027845000,-833.66866701,0.00036684,120]
[426936513,1783027845000,-208.41716675,0.00036684,120]
[426936509,1783027845000,-568.69890585,0.00036679,120]
[426936548,1783027845000,-346.373771,0.000367,14]
[426936512,1783027845000,-416.8343335,0.00036684,120]
[426936514,1783027845000,-405.0,0.00036692,2]
[426936523,1783027845000,-349.373771,0.000367,7]
[426936515,1783027845000,-1000.0,0.00036694,53]
[426936520,1783027845000,-349.373771,0.000367,7]
[426936518,1783027845000,-346.373771,0.000367,7]
[426936519,1783027845000,-343.373771,0.000367,7]
[426936516,1783027845000,-463.0,0.00036697,2]
[426936521,1783027845000,-346.373771,0.000367,7]
[426936522,1783027845000,-343.373771,0.000367,7]
[426936524,1783027845000,-346.373771,0.000367,7]
[426936526,1783027845000,-349.373771,0.000367,7]
[426936517,1783027845000,-430.373794,0.000367,7]
[426936549,1783027845000,-343.373771,0.000367,14]
[426936541,1783027845000,-349.373771,0.000367,7]
[426936546,1783027845000,-343.373771,0.000367,14]
[426936575,1783027845000,-312.903439,0.000367,14]
[426936572,1783027845000,-300.903439,0.000367,7]
[426936571,1783027845000,-312.903439,0.000367,7]
[426936577,1783027845000,-297.903439,0.000367,14]
[426936584,1783027845000,-324.438344,0.000367,7]
[426936582,1783027845000,-330.438344,0.000367,7]
[426936581,1783027845000,-324.438344,0.000367,7]
[426936580,1783027845000,-327.438344,0.000367,7]
[426936579,1783027845000,-348.438349,0.000367,7]
[426936583,1783027845000,-327.438344,0.000367,7]
[426936576,1783027845000,-300.903439,0.000367,14]
[426936586,1783027845000,-348.438348,0.000367,14]
[426936585,1783027845000,-330.438344,0.000367,7]
[426936589,1783027845000,-330.438344,0.000367,14]
[426936587,1783027845000,-327.438344,0.000367,14]
[426936588,1783027845000,-324.438344,0.000367,14]
[426936591,1783027845000,-324.438344,0.000367,14]
[426936590,1783027845000,-327.438344,0.000367,14]
[426936545,1783027845000,-346.373771,0.000367,14]
[426936570,1783027845000,-343.373771,0.000367,14]
[426936573,1783027845000,-297.903439,0.000367,7]
[426936578,1783027845000,-303.903439,0.000367,14]
[426936569,1783027845000,-346.373771,0.000367,14]
[426936551,1783027845000,-346.373771,0.000367,14]
[426936574,1783027845000,-303.903439,0.000367,7]
[426936552,1783027845000,-343.373771,0.000367,14]
[426936553,1783027845000,-349.373771,0.000367,14]
[426936555,1783027845000,-343.373771,0.000367,14]
[426936556,1783027845000,-349.373771,0.000367,14]
[426936558,1783027845000,-343.373771,0.000367,14]
[426936557,1783027845000,-346.373771,0.000367,14]
[426936560,1783027845000,-346.373771,0.000367,14]
[426936554,1783027845000,-346.373771,0.000367,14]
[426936559,1783027845000,-349.373771,0.000367,14]
[426936565,1783027845000,-349.373771,0.000367,14]
[426936564,1783027845000,-343.373771,0.000367,14]
[426936561,1783027845000,-343.373771,0.000367,14]
[426936563,1783027845000,-346.373771,0.000367,14]
[426936562,1783027845000,-349.373771,0.000367,14]
[426936567,1783027845000,-343.373771,0.000367,14]
[426936568,1783027845000,-349.373771,0.000367,14]
[426936566,1783027845000,-346.373771,0.000367,14]
[426936621,1783027846000,-313.53861276,0.00036785,2]
[426936627,1783027846000,-151.0,0.00036797,14]
[426936626,1783027846000,-599.02,0.00036792,120]
[426936623,1783027846000,-5000.0,0.00036792,2]
[426936624,1783027846000,-5000.0,0.00036792,7]
[426936622,1783027846000,-318.45334534,0.00036785,2]
[426936629,1783027846000,-500.0,0.00036799,120]
[426936620,1783027846000,-1918.37160729,0.00036776,53]
[426936625,1783027846000,-477.67,0.00036792,30]
[426936618,1783027846000,-500.0,0.00036767,2]
[426936628,1783027846000,-1250.03,0.00036798,2]
[426936639,1783027846000,-1500.0,0.00036799,2]
[426936633,1783027846000,-516.28110742,0.00036799,120]
[426936632,1783027846000,-500.0,0.00036799,120]
[426936634,1783027846000,-1000.0,0.00036799,2]
[426936642,1783027846000,-500.0,0.00036799,7]
[426936631,1783027846000,-500.0,0.00036799,120]
[426936637,1783027846000,-1000.0,0.00036799,2]
[426936640,1783027846000,-500.0,0.00036799,7]
[426936635,1783027846000,-1000.0,0.00036799,2]
[426936641,1783027846000,-500.0,0.00036799,7]
[426936619,1783027846000,-300.0,0.0003677,2]
[426936630,1783027846000,-500.0,0.00036799,120]
[426936612,1783027846000,-216.87214687,0.0003675,2]
[426936601,1783027846000,-1000.0,0.00036717,2]
[426936610,1783027846000,-359.0,0.00036748,2]
[426936636,1783027846000,-1000.0,0.00036799,2]
[426936592,1783027846000,-330.438344,0.000367,14]
[426936593,1783027846000,-2500.0,0.000367,2]
[426936600,1783027846000,-500.0,0.00036717,120]
[426936594,1783027846000,-2500.0,0.000367,2]
[426936604,1783027846000,-1000.0,0.00036721,53]
[426936602,1783027846000,-500.0,0.00036717,7]
[426936603,1783027846000,-178.35,0.0003672,119]
[426936596,1783027846000,-393.0,0.00036704,2]
[426936605,1783027846000,-150.0,0.00036738,5]
[426936611,1783027846000,-1000.0,0.00036749,53]
[426936595,1783027846000,-393.0,0.00036702,2]
[426936597,1783027846000,-237.04,0.00036712,60]
[426936599,1783027846000,-500.0,0.00036717,120]
[426936606,1783027846000,-625.0,0.00036738,7]
[426936608,1783027846000,-158.364397,0.00036739,111]
[426936614,1783027846000,-150.7194063,0.0003675,2]
[426936613,1783027846000,-797.63074833,0.0003675,2]
[426936607,1783027846000,-1972.0,0.00036738,7]
[426936616,1783027846000,-441.0,0.00036757,2]
[426936609,1783027846000,-200.0,0.00036744,10]
[426936615,1783027846000,-394.0,0.00036756,2]
[426936598,1783027846000,-60554.65753693,0.00036717,30]
[426936638,1783027846000,-1000.0,0.00036799,2]
[426936617,1783027846000,-433.0,0.00036762,2]
[426936645,1783027846000,-18094.05432307,0.00036799,120]
[426936671,1783027846000,-500.0,0.00036849,7]
[426936673,1783027846000,-500.0,0.00036849,7]
[426936675,1783027846000,-150.0,0.00036849,120]
[426936692,1783027846000,-49991.0,0.0003685,120]
[426936676,1783027846000,-283.0185168,0.00036849,120]
[426936674,1783027846000,-257.79230085,0.00036849,7]
[426936679,1783027846000,-197.38851541,0.00036849,120]
[426936684,1783027846000,-49991.0,0.0003685,120]
[426936682,1783027846000,-49991.0,0.0003685,120]
[426936678,1783027846000,-260.17608375,0.00036849,120]
[426936687,1783027846000,-49991.0,0.0003685,120]
[426936685,1783027846000,-49991.0,0.0003685,120]
[426936688,1783027846000,-49991.0,0.0003685,120]
[426936677,1783027846000,-150.0,0.00036849,120]
[426936680,1783027846000,-49991.0,0.0003685,120]
[426936681,1783027846000,-197.34496834,0.0003685,2]
[426936686,1783027846000,-49991.0,0.0003685,120]
[426936683,1783027846000,-49991.0,0.0003685,120]
[426936691,1783027846000,-49991.0,0.0003685,120]
[426936689,1783027846000,-49991.0,0.0003685,120]
[426936693,1783027846000,-49991.0,0.0003685,120]
[426936694,1783027846000,-41599.43371681,0.0003685,120]
[426936690,1783027846000,-49991.0,0.0003685,120]
[426936667,1783027846000,-500.0,0.00036849,7]
[426936670,1783027846000,-500.0,0.00036849,7]
[426936646,1783027846000,-245.75843918,0.00036799,120]
[426936669,1783027846000,-500.0,0.00036849,7]
[426936672,1783027846000,-500.0,0.00036849,7]
[426936647,1783027846000,-472.85177146,0.00036799,120]
[426936643,1783027846000,-500.0,0.00036799,7]
[426936644,1783027846000,-500.0,0.00036799,7]
[426936651,1783027846000,-1123760.0,0.000368,7]
[426936653,1783027846000,-994.09,0.000368,120]
[426936648,1783027846000,-9145.0,0.00036799,5]
[426936650,1783027846000,-24222.52,0.000368,120]
[426936652,1783027846000,-571.0,0.000368,7]
[426936654,1783027846000,-351.216752,0.000368,10]
[426936658,1783027846000,-364.71309854,0.00036812,2]
[426936649,1783027846000,-261250.40661795,0.000368,15]
[426936656,1783027846000,-421.80873802,0.00036805,2]
[426936668,1783027846000,-500.0,0.00036849,7]
[426936660,1783027846000,-265.40949613,0.00036815,20]
[426936663,1783027846000,-151.0,0.00036847,14]
[426936665,1783027846000,-1000.0,0.00036849,2]
[426936662,1783027846000,-393.0,0.00036824,2]
[426936661,1783027846000,-200.0,0.00036821,10]
[426936664,1783027846000,-1000.0,0.00036849,2]
[426936657,1783027846000,-200.0,0.00036805,2]
[426936666,1783027846000,-1000.0,0.00036849,2]
[426936659,1783027846000,-397.0,0.00036812,2]
[426936655,1783027846000,-439.36062596,0.000368,2]
[426936704,1783027847000,-1944.84407149,0.00034156,2]
[426936695,1783027847000,-8391.56628319,0.0003685,120]
[426936696,1783027847000,-2397.79459258,0.0003685,120]
[426936698,1783027847000,-262.90107227,0.00027397,10]
[426936699,1783027847000,-310.0,0.00027397,10]
[426936702,1783027847000,-164.60250945,0.00033461,2]
[426936701,1783027847000,-135.39749055,0.00033461,2]
[426936700,1783027847000,-619.29892773,0.00027397,10]
[426936705,1783027847000,-207.61593734,0.00035361,2]
[426936697,1783027847000,-946.99,0.00027397,10]
[426936706,1783027847000,-468.12299621,0.0003685,120]
[426936703,1783027847000,-300.0,0.00033461,2]
[426936715,1783027847000,-300.0,0.00033461,2]
[426936714,1783027847000,-300.0,0.00033461,2]
[426936713,1783027847000,-10820.30426863,0.0003685,120]
[426936710,1783027847000,-2737.24,0.0003685,120]
[426936711,1783027847000,-21441.87131258,0.0003685,120]
[426936709,1783027847000,-184.05695876,0.0003685,120]
[426936707,1783027847000,-203.12,0.00024658,2]
[426936708,1783027847000,-446.20103305,0.00033461,2]
[426936712,1783027847000,-5868.31786434,0.0003685,120]
[426936721,1783027848000,-1084.3,0.0003685,120]
[426936716,1783027848000,-1944.84407149,0.00035528,2]
[426936720,1783027848000,-5533.76361935,0.0003685,120]
[426936719,1783027848000,-2011.98122317,0.0003685,120]
[426936718,1783027848000,-4061.31078373,0.0003685,120]
[426936717,1783027848000,-177.0,0.00036,30]
[426936723,1783027864000,-577.69641828,0.000245,2]
[426936722,1783027864000,-177.0,0.00024,2]
[426936727,1783028705000,-40.99921683,0.00013488,2]
[426936726,1783028705000,-150.0,0.00013488,2]
[426936728,1783028717000,-109.00078317,0.00013488,2]
[426936732,1783028717000,-127.81530752,0.00013488,2]
[426936731,1783028717000,-150.0,0.00013488,2]
[426936729,1783028717000,-150.0,0.00013488,2]
[426936730,1783028717000,-150.0,0.00013488,2]
[426936734,1783028768000,19244.97541617,0.00013,5]
[426936736,1783028844000,150.0,0.00014962,120]
[426936738,1783028886000,-22.18469248,0.00013488,2]
[426936740,1783028886000,-150.0,0.00013702,2]
[426936741,1783028886000,-150.0,0.00013916,2]
[426936739,1783028886000,-946.1677046,0.00013595,2]
[426936742,1783028886000,-500.0,0.00013941,2]
[426936745,1783028886000,-150.0,0.0001413,2]
[426936743,1783028886000,-190.95,0.00014006,2]
[426936747,1783028886000,-200.0,0.000143,5]
[426936746,1783028886000,-150.0,0.00014237,2]
[426936748,1783028886000,-150.0,0.00014344,2]
[426936749,1783028886000,-128.96755037,0.000144,5]
[426936744,1783028886000,-996.46,0.00014068,2]
[426936751,1783028918000,-1677.27793999,0.000145,2]
[426936752,1783028918000,-600.0,0.000145,5]
[426936750,1783028918000,-271.03244963,0.000144,5]
[426936754,1783028918000,-525.10096253,0.000146,5]
[426936753,1783028918000,-150.0,0.00014558,2]
[426936757,1783028918000,-1848.51231468,0.00014711,2]
[426936756,1783028918000,-1100.0,0.000147,5]
[426936758,1783028918000,-311.2750702,0.00014711,2]
[426936755,1783028918000,-274.89903747,0.000146,5]
[426936763,1783028944000,-280.93490225,0.00014711,2]
[426936762,1783028944000,-3358.57330764,0.00014711,2]
[426936761,1783028944000,-3358.57330764,0.00014711,2]
[426936764,1783028968000,-3498.53493799,0.00014711,2]
[426936765,1783028968000,-3156.61964852,0.00014711,2]
[426936767,1783028993000,-3631.63802972,0.00014711,2]
[426936766,1783028993000,-3631.63802972,0.00014711,2]
[426936768,1783028994000,-581.57658807,0.00014711,2]
[426936773,1783029032000,-9871.70146767,0.00014711,2]
[426936774,1783029032000,-77745.13933075,0.00014711,2]
[426936772,1783029032000,-1500.0,0.00014711,2]
[426936771,1783029032000,-411.21228082,0.00014711,2]
[426936803,1783029038000,-1852.42,0.00014881,2]
[426936806,1783029038000,-1458.63305365,0.000149,2]
[426936808,1783029038000,-510.43799854,0.000149,2]
[426936810,1783029038000,-198.4,0.00014925,2]
[426936818,1783029038000,-500.0,0.00014999,2]
[426936813,1783029038000,-150.0,0.00014986,2]
[426936815,1783029038000,-197.38851541,0.00014986,2]
[426936811,1783029038000,-150.0,0.00014962,2]
[426936814,1783029038000,-260.17608375,0.00014986,2]
[426936812,1783029038000,-283.0185168,0.00014986,2]
[426936809,1783029038000,-182.60383974,0.00014925,2]
[426936807,1783029038000,-83219.2919538,0.000149,2]
[426936805,1783029038000,-200.0,0.000149,5]
[426936816,1783029038000,-25042.07393558,0.00014989,2]
[426936796,1783029038000,-150.0,0.00014772,2]
[426936799,1783029038000,-190.99921683,0.00014836,2]
[426936797,1783029038000,-200.0,0.000148,5]
[426936800,1783029038000,-600.0,0.00014836,2]
[426936795,1783029038000,-48272.13078433,0.00014711,2]
[426936801,1783029038000,-300.0,0.00014836,2]
[426936798,1783029038000,-300.0,0.00014836,2]
[426936802,1783029038000,-1000.0,0.00014847,2]
[426936817,1783029038000,-978.7588181,0.00014999,2]
[426936804,1783029038000,-216.87214687,0.000149,2]
[426936822,1783029038000,-500.0,0.00014999,2]
[426936819,1783029038000,-500.0,0.00014999,2]
[426936843,1783029038000,-500.0,0.00014999,2]
[426936842,1783029038000,-500.0,0.00014999,2]
[426936841,1783029038000,-500.0,0.00014999,2]
[426936839,1783029038000,-500.0,0.00014999,2]
[426936840,1783029038000,-500.0,0.00014999,2]
[426936838,1783029038000,-500.0,0.00014999,2]
[426936837,1783029038000,-500.0,0.00014999,2]
[426936831,1783029038000,-500.0,0.00014999,2]
[426936833,1783029038000,-500.0,0.00014999,2]
[426936832,1783029038000,-500.0,0.00014999,2]
[426936834,1783029038000,-500.0,0.00014999,2]
[426936836,1783029038000,-500.0,0.00014999,2]
[426936828,1783029038000,-500.0,0.00014999,2]
[426936827,1783029038000,-500.0,0.00014999,2]
[426936823,1783029038000,-500.0,0.00014999,2]
[426936821,1783029038000,-608.02919066,0.00014999,2]
[426936824,1783029038000,-500.0,0.00014999,2]
[426936829,1783029038000,-500.0,0.00014999,2]
[426936820,1783029038000,-372.09174349,0.00014999,2]
[426936835,1783029038000,-500.0,0.00014999,2]
[426936825,1783029038000,-500.0,0.00014999,2]
[426936830,1783029038000,-500.0,0.00014999,2]
[426936826,1783029038000,-500.0,0.00014999,2]
[426936889,1783029039000,-500.0,0.00014999,2]
[426936880,1783029039000,-500.0,0.00014999,2]
[426936876,1783029039000,-500.0,0.00014999,2]
[426936879,1783029039000,-500.0,0.00014999,2]
[426936881,1783029039000,-500.0,0.00014999,2]
[426936877,1783029039000,-500.0,0.00014999,2]
[426936882,1783029039000,-500.0,0.00014999,2]
[426936878,1783029039000,-500.0,0.00014999,2]
[426936883,1783029039000,-500.0,0.00014999,2]
[426936885,1783029039000,-279.26709954,0.00014999,2]
[426936895,1783029039000,-500.0,0.00014999,2]
[426936887,1783029039000,-500.0,0.00014999,2]
[426936899,1783029039000,-500.0,0.00014999,2]
[426936884,1783029039000,-500.0,0.00014999,2]
[426936888,1783029039000,-500.0,0.00014999,2]
[426936891,1783029039000,-500.0,0.00014999,2]
[426936890,1783029039000,-500.0,0.00014999,2]
[426936892,1783029039000,-500.0,0.00014999,2]
[426936894,1783029039000,-500.0,0.00014999,2]
[426936893,1783029039000,-500.0,0.00014999,2]
[426936897,1783029039000,-500.0,0.00014999,2]
[426936901,1783029039000,-500.0,0.00014999,2]
[426936900,1783029039000,-500.0,0.00014999,2]
[426936898,1783029039000,-500.0,0.00014999,2]
[426936875,1783029039000,-500.0,0.00014999,2]
[426936886,1783029039000,-500.0,0.00014999,2]
[426936871,1783029039000,-500.0,0.00014999,2]
[426936903,1783029039000,-500.0,0.00014999,2]
[426936870,1783029039000,-262.99309213,0.00014999,2]
[426936844,1783029039000,-500.0,0.00014999,2]
[426936845,1783029039000,-500.0,0.00014999,2]
[426936846,1783029039000,-500.0,0.00014999,2]
[426936848,1783029039000,-164.50883834,0.00014999,2]
[426936858,1783029039000,-500.0,0.00014999,2]
[426936855,1783029039000,-500.0,0.00014999,2]
[426936850,1783029039000,-500.0,0.00014999,2]
[426936852,1783029039000,-500.0,0.00014999,2]
[426936847,1783029039000,-500.0,0.00014999,2]
[426936853,1783029039000,-500.0,0.00014999,2]
[426936857,1783029039000,-500.0,0.00014999,2]
[426936849,1783029039000,-500.0,0.00014999,2]
[426936873,1783029039000,-500.0,0.00014999,2]
[426936854,1783029039000,-500.0,0.00014999,2]
[426936851,1783029039000,-500.0,0.00014999,2]
[426936863,1783029039000,-550.0,0.00014999,2]
[426936860,1783029039000,-500.0,0.00014999,2]
[426936862,1783029039000,-500.0,0.00014999,2]
[426936861,1783029039000,-500.0,0.00014999,2]
[426936859,1783029039000,-500.0,0.00014999,2]
[426936865,1783029039000,-500.0,0.00014999,2]
[426936864,1783029039000,-500.0,0.00014999,2]
[426936866,1783029039000,-500.0,0.00014999,2]
[426936868,1783029039000,-500.0,0.00014999,2]
[426936867,1783029039000,-500.0,0.00014999,2]
[426936869,1783029039000,-500.0,0.00014999,2]
[426936856,1783029039000,-435.79877295,0.00014999,2]
[426936906,1783029039000,-587.61964443,0.00014999,2]
[426936874,1783029039000,-500.0,0.00014999,2]
[426936896,1783029039000,-500.0,0.00014999,2]
[426936931,1783029039000,-166.66,0.00015035,2]
[426936934,1783029039000,-500.0,0.00015547,2]
[426936938,1783029039000,-200.0,0.0001584,2]
[426936935,1783029039000,-500.0,0.00015649,2]
[426936936,1783029039000,-500.0,0.00015821,2]
[426936937,1783029039000,-500.0,0.00015837,2]
[426936939,1783029039000,-250.0,0.0001584,2]
[426936943,1783029039000,-502.0,0.0001611,2]
[426936942,1783029039000,-175.84951452,0.00016095,2]
[426936953,1783029039000,-333.8,0.00017645,2]
[426936944,1783029039000,-255.0,0.00016124,2]
[426936946,1783029039000,-1327.32,0.00016454,2]
[426936929,1783029039000,-2931.14705364,0.00015,2]
[426936948,1783029039000,-166.66,0.00016524,2]
[426936947,1783029039000,-1000.0,0.000165,2]
[426936949,1783029039000,-4456.52,0.000166,2]
[426936952,1783029039000,-166.66,0.00017516,2]
[426936950,1783029039000,-166.66,0.0001702,2]
[426936951,1783029039000,-433.0,0.00017339,2]
[426936954,1783029039000,-1894.72,0.00017645,2]
[426936956,1783029039000,-933.91452822,0.0001789,2]
[426936955,1783029039000,-150.0,0.00017645,2]
[426936957,1783029039000,-532.05311223,0.00018,2]
[426936958,1783029039000,-1458.63305362,0.00018006,2]
[426936960,1783029039000,-500.0,0.00018453,2]
[426936905,1783029039000,-500.0,0.00014999,2]
[426936945,1783029039000,-1458.63305362,0.00016453,2]
[426936961,1783029039000,-1258.40304712,0.00018595,2]
[426936959,1783029039000,-992.67,0.00018016,2]
[426936932,1783029039000,-500.0,0.00015273,2]
[426936941,1783029039000,-166.66,0.00016027,2]
[426936904,1783029039000,-150.0,0.00014999,2]
[426936902,1783029039000,-500.0,0.00014999,2]
[426936911,1783029039000,-500.0,0.00014999,2]
[426936907,1783029039000,-500.0,0.00014999,2]
[426936914,1783029039000,-500.0,0.00014999,2]
[426936913,1783029039000,-500.0,0.00014999,2]
[426936908,1783029039000,-500.0,0.00014999,2]
[426936915,1783029039000,-500.0,0.00014999,2]
[426936909,1783029039000,-500.0,0.00014999,2]
[426936912,1783029039000,-500.0,0.00014999,2]
[426936916,1783029039000,-500.0,0.00014999,2]
[426936910,1783029039000,-500.0,0.00014999,2]
[426936917,1783029039000,-9354642.25106098,0.00015,2]
[426936926,1783029039000,-3000.0,0.00015,2]
[426936919,1783029039000,-2087.0162555,0.00015,2]
[426936930,1783029039000,-231.3,0.00015,2]
[426936928,1783029039000,-3000.0,0.00015,2]
[426936927,1783029039000,-3000.0,0.00015,2]
[426936923,1783029039000,-3000.0,0.00015,2]
[426936940,1783029039000,-513.12237384,0.0001584,2]
[426936918,1783029039000,-534.35862129,0.00015,2]
[426936924,1783029039000,-3000.0,0.00015,2]
[426936925,1783029039000,-3000.0,0.00015,2]
[426936920,1783029039000,-3000.0,0.00015,2]
[426936933,1783029039000,-166.66,0.00015531,2]
[426936922,1783029039000,-3000.0,0.00015,2]
[426936921,1783029039000,-3000.0,0.00015,2]
[426937000,1783029040000,-151.0,0.00021856,2]
[426936999,1783029040000,-151.0,0.00021856,2]
[426936993,1783029040000,-151.0,0.00021856,2]
[426936992,1783029040000,-151.0,0.00021856,2]
[426936995,1783029040000,-151.0,0.00021856,2]
[426936994,1783029040000,-151.0,0.00021856,2]
[426936991,1783029040000,-307.26,0.00021644,4]
[426937001,1783029040000,-151.0,0.00021856,2]
[426936996,1783029040000,-151.0,0.00021856,2]
[426936997,1783029040000,-151.0,0.00021856,2]
[426936998,1783029040000,-151.0,0.00021856,2]
[426937004,1783029040000,-151.0,0.00021856,2]
[426937003,1783029040000,-151.0,0.00021856,2]
[426937005,1783029040000,-151.0,0.00021856,2]
[426937002,1783029040000,-151.0,0.00021856,2]
[426937011,1783029040000,-151.0,0.00021856,2]
[426937006,1783029040000,-151.0,0.00021856,2]
[426937009,1783029040000,-151.0,0.00021856,2]
[426937010,1783029040000,-151.0,0.00021856,2]
[426937008,1783029040000,-151.0,0.00021856,2]
[426937013,1783029040000,-150.0,0.00021918,2]
[426936987,1783029040000,-1458.63305362,0.00021111,2]
[426937012,1783029040000,-1580.44195352,0.000219,2]
[426937007,1783029040000,-151.0,0.00021856,2]
[426936988,1783029040000,-1580.44195352,0.000212,2]
[426936967,1783029040000,-150.0,0.00019932,2]
[426936986,1783029040000,-150.0,0.00021,2]
[426937021,1783029040000,-1458.63305362,0.00022664,2]
[426936965,1783029040000,-395.47,0.00019355,7]
[426936962,1783029040000,-157.23588198,0.00018917,2]
[426936963,1783029040000,-150.0,0.00018963,2]
[426936964,1783029040000,-160.0,0.00019,2]
[426936966,1783029040000,-1458.63305362,0.00019559,2]
[426936968,1783029040000,-213.0,0.00019932,2]
[426936970,1783029040000,-474.61,0.0001995,2]
[426936969,1783029040000,-440.28281164,0.00019932,2]
[426936971,1783029040000,-7000.0,0.0002,2]
[426936972,1783029040000,-3315.50232035,0.0002,2]
[426936976,1783029040000,-599.99999901,0.0002,2]
[426936975,1783029040000,-51431.74857819,0.0002,2]
[426936974,1783029040000,-6282.0,0.0002,2]
[426936973,1783029040000,-25860.60586995,0.0002,2]
[426936989,1783029040000,-1580.44195352,0.000214,2]
[426936990,1783029040000,-1580.44195352,0.000216,2]
[426936978,1783029040000,-285.05513885,0.00020371,2]
[426936980,1783029040000,-223.97838324,0.000204,2]
[426936985,1783029040000,-1580.44195352,0.00021,2]
[426936983,1783029040000,-510.43799853,0.000208,2]
[426936982,1783029040000,-150.0,0.0002058,2]
[426936981,1783029040000,-189.77159536,0.000204,2]
[426936984,1783029040000,-293.19067143,0.00020956,2]
[426937015,1783029040000,-206.0,0.00021976,2]
[426937018,1783029040000,-1580.44195352,0.000223,2]
[426937055,1783029040000,-173.17628224,0.00024944,2]
[426937049,1783029040000,-500.0,0.00024658,2]
[426937054,1783029040000,-216.69616408,0.00024881,2]
[426937048,1783029040000,-213.735553,0.000245,14]
[426937045,1783029040000,-1458.63305362,0.00024217,2]
[426937052,1783029040000,-220.83058827,0.00024822,30]
[426937047,1783029040000,-154.94615298,0.00024397,2]
[426937051,1783029040000,-2277.11867751,0.00024667,2]
[426937050,1783029040000,-501.451067,0.00024658,2]
[426937056,1783029040000,-161.34797847,0.00024944,2]
[426937061,1783029040000,-31090.28,0.00025,2]
[426937060,1783029040000,-177.0,0.00025,2]
[426937057,1783029040000,-177.3819487,0.00024944,2]
[426937059,1783029040000,-223.15892034,0.00024944,2]
[426937058,1783029040000,-206.6925228,0.00024944,2]
[426937064,1783029040000,-167.0,0.00025,2]
[426937062,1783029040000,-181.0,0.00025,2]
[426937063,1783029040000,-31218.0,0.00025,2]
[426937066,1783029040000,-318.0,0.00025,2]
[426937065,1783029040000,-151.0,0.00025,2]
[426937069,1783029040000,-2277.11867751,0.00025333,2]
[426937068,1783029040000,-154.0,0.00025,2]
[426937017,1783029040000,-1580.44195352,0.000221,2]
[426937067,1783029040000,-2277.11867751,0.00025,2]
[426937046,1783029040000,-2277.11867751,0.00024333,2]
[426937044,1783029040000,-862.67196367,0.0002421,2]
[426937053,1783029040000,-160.0,0.00024881,2]
[426937041,1783029040000,-7370.38,0.00024174,2]
[426937016,1783029040000,-2441.89282361,0.00022,4]
[426937014,1783029040000,-502.0,0.00021918,7]
[426937019,1783029040000,-171.35,0.00022368,2]
[426937020,1783029040000,-1580.44195352,0.000225,2]
[426937022,1783029040000,-1580.44195352,0.000227,2]
[426937025,1783029040000,-150.0,0.00023014,2]
[426937031,1783029040000,-181.0,0.00024,2]
[426937024,1783029040000,-2277.11867751,0.00023,2]
[426937043,1783029040000,-1517.0,0.00024174,2]
[426937029,1783029040000,-2277.11867751,0.00023667,2]